fUSD/lending_fUSD_20260315
["ID","MTS","AMOUNT","RATE_DAILY","PERIOD"]
[408408403,1773573040294,-7153.26184371,0.0001439,2]
[408408404,1773573040303,-29999.99,0.00014504,2]
[408408405,1773573040313,-9999.99,0.00014504,2]
[408408406,1773573040323,-4762.52,0.00014504,2]
[408408407,1773573040333,-161.0,0.0001454,3]
[408408408,1773573040342,-295.71924551,0.00014596,2]
[408408409,1773573040352,-5438.59,0.0001462,2]
[408408410,1773573040361,-362.0,0.00014695,3]
[408408411,1773573040370,-343.93097827,0.000149,2]
[408408412,1773573040379,-500.0,0.000149,2]
[408408413,1773573040388,-250.0,0.00015,2]
[408408414,1773573040396,-2062.08797356,0.00015,2]
[408408415,1773573040406,-3179.30155397,0.00015,14]
[408408416,1773573040415,-8027.73774163,0.00015,2]
[408408417,1773573040425,-29514.51271304,0.00015,7]
[408408418,1773573040435,-5438.59,0.00015124,2]
[408408419,1773573040445,-288.72855791,0.00015133,2]
[408408420,1773573040456,-736.0,0.00015232,2]
[408408421,1773573040466,-11586.15910622,0.00015289,2]
[408408422,1773573040475,-15550.72209961,0.00015289,2]
[408408423,1773573040487,-1517.64,0.000153,2]
[408408424,1773573040497,-250.0,0.00015327,2]
[408408425,1773573040506,-511.28109922,0.000154,2]
[408408426,1773573040516,-3292.0,0.00015438,2]
[408408427,1773573040525,-474.77138768,0.00015448,2]
[408408428,1773573040535,-435.0,0.0001549,2]
[408408429,1773573040544,-5438.59,0.00015628,2]
[408408430,1773573040553,-212.54526184,0.0001576,2]
[408408431,1773573040562,-1348.2527862,0.0001576,2]
[408408432,1773573040571,-1339.63,0.00015782,2]
[408408433,1773573040580,-150.0,0.000159,2]
[408408434,1773573040590,-150.0,0.000159,2]
[408408435,1773573040599,-150.0,0.000159,2]
[408408436,1773573040608,-2200.0,0.000159,5]
[408408437,1773573040617,-150.0,0.000159,2]
[408408438,1773573040626,-1400.0,0.000159,5]
[408408439,1773573040636,-150.0,0.000159,2]
[408408440,1773573040645,-5000.0,0.0001596,2]
[408408441,1773573040655,-5465.59101331,0.00016,2]
[408408442,1773573040664,-160.0,0.00016,7]
[408408443,1773573040673,-5438.59,0.00016132,2]
[408408444,1773573040683,-504.34667624,0.00016173,2]
[408408445,1773573040692,-500.0,0.00016173,2]
[408408446,1773573040701,-500.0,0.00016173,2]
[408408447,1773573040710,-500.0,0.00016173,2]
[408408448,1773573040720,-504.89540778,0.00016173,2]
[408408449,1773573040729,-500.0,0.00016173,2]
[408408450,1773573040737,-500.0,0.00016173,2]
[408408451,1773573040747,-11586.15910622,0.00016211,2]
[408408452,1773573040756,-15550.72209961,0.00016211,2]
[408408453,1773573040765,-362.0,0.00016242,3]
[408408454,1773573040774,-200.0,0.0001634,2]
[408408455,1773573040783,-745.1649632,0.00016357,2]
[408408456,1773573040793,-150.0,0.000164,2]
[408408457,1773573040802,-213.0,0.000164,2]
[408408458,1773573040811,-302.46,0.000164,2]
[408408459,1773573040820,-353.5768258,0.000164,2]
[408408460,1773573040830,-362.78151867,0.000166,2]
[408408461,1773573040839,-1252.0,0.00016636,2]
[408408462,1773573040849,-5438.59,0.00016637,2]
[408408463,1773573040858,-166.66,0.00016712,2]
[408408464,1773573040868,-500.0,0.00016721,2]
[408408465,1773573040878,-606.60583664,0.00016721,2]
[408408466,1773573040889,-1000.0,0.00016721,2]
[408408467,1773573040898,-500.0,0.00016721,2]
[408408468,1773573040908,-482.7910397,0.00016721,2]
[408408469,1773573040917,-176.8071922,0.000169,2]
[408408470,1773573040926,-210.44587917,0.000169,2]
[408408471,1773573040935,-216.7537181,0.000169,2]
[408408472,1773573040946,-7167.79728364,0.000169,2]
[408408473,1773573040955,-1466.4303,0.00016958,7]
[408408474,1773573040967,-382.735519,0.00016958,7]
[408408475,1773573040978,-501.00594365,0.00016973,2]
[408408476,1773573040988,-350.81480094,0.00016973,2]
[408408477,1773573040997,-500.0,0.00016973,2]
[408408478,1773573041007,-4609.0,0.00016982,2]
[408408479,1773573041016,-300.0,0.00017,2]
[408408480,1773573041025,-630685.64452808,0.00017,2]
[408408481,1773573041035,-518.0,0.00017,2]
[408408482,1773573041046,-11586.15910622,0.00017133,2]
[408408483,1773573041055,-15550.72209961,0.00017133,2]
[408408484,1773573041064,-5438.59,0.00017141,2]
[408408485,1773573041073,-381.93768694,0.0001715,2]
[408408486,1773573041082,-1339.63,0.00017217,2]
[408408487,1773573041091,-1500.0,0.00017268,2]
[408408488,1773573041101,-161.0,0.0001748,3]
[408408489,1773573041110,-744.75125332,0.00017521,2]
[408408490,1773573041121,-5438.59,0.00017645,2]
[408408491,1773573041130,-469.87233333,0.00017784,2]
[408408492,1773573041139,-362.0,0.00017789,3]
[408408493,1773573041148,-784.55377187,0.00017808,2]
[408408494,1773573041157,-1500.0,0.00017816,2]
[408408495,1773573041166,-1651.3710552,0.000179,2]
[408408496,1773573041175,-1168.0,0.00017901,2]
[408408497,1773573041184,-1959.56597553,0.00018,2]
[408408498,1773573041193,-11586.15910622,0.00018056,2]
[408408499,1773573041202,-15550.72209961,0.00018056,2]
[408408500,1773573041211,-5438.59,0.00018149,2]
[408408501,1773573041220,-552.0,0.00018168,2]
[408408502,1773573041229,-500.0,0.000186,2]
[408408503,1773573041239,-500.0,0.000186,2]
[408408504,1773573041248,-500.0,0.000186,2]
[408408505,1773573041257,-500.0,0.000186,2]
[408408506,1773573041266,-500.0,0.000186,2]
[408408507,1773573041276,-909.53474774,0.000186,2]
[408408508,1773573041285,-500.0,0.000186,2]
[408408509,1773573041294,-500.0,0.000186,2]
[408408510,1773573041303,-500.0,0.000186,2]
[408408511,1773573041312,-500.0,0.000186,2]
[408408512,1773573041323,-500.0,0.000186,2]
[408408513,1773573041333,-500.0,0.000186,2]
[408408514,1773573041342,-500.0,0.000186,2]
[408408515,1773573041353,-500.0,0.000186,2]
[408408516,1773573041363,-500.0,0.000186,2]
[408408517,1773573041373,-500.0,0.000186,2]
[408408518,1773573041382,-500.0,0.000186,2]
[408408519,1773573041394,-500.0,0.000186,2]
[408408520,1773573041404,-500.0,0.000186,2]
[408408521,1773573041413,-500.0,0.000186,2]
[408408522,1773573041423,-500.0,0.000186,2]
[408408523,1773573041432,-500.0,0.000186,2]
[408408524,1773573041442,-500.0,0.000186,2]
[408408525,1773573041451,-500.0,0.000186,2]
[408408526,1773573041460,-500.0,0.000186,2]
[408408527,1773573041470,-500.0,0.000186,2]
[408408528,1773573041479,-500.0,0.000186,2]
[408408529,1773573041489,-500.0,0.000186,2]
[408408530,1773573041498,-500.0,0.000186,2]
[408408531,1773573041508,-500.0,0.000186,2]
[408408532,1773573041518,-724.863084,0.000186,2]
[408408533,1773573041527,-500.0,0.000186,2]
[408408534,1773573041537,-500.0,0.000186,2]
[408408535,1773573041547,-500.0,0.000186,2]
[408408536,1773573041557,-500.0,0.000186,2]
[408408537,1773573041566,-500.0,0.000186,2]
[408408538,1773573041575,-500.0,0.000186,2]
[408408539,1773573041584,-500.0,0.000186,2]
[408408540,1773573041593,-500.0,0.000186,2]
[408408541,1773573041602,-747.23546138,0.000186,2]
[408408542,1773573041611,-5438.59,0.00018653,2]
[408408543,1773573041620,-6453.0,0.0001868,2]
[408408544,1773573041629,-288.25875794,0.00018968,2]
[408408545,1773573041638,-11586.15910622,0.00018978,2]
[408408546,1773573041647,-15550.72209961,0.00018978,2]
[408408547,1773573041657,-350.0,0.00019,2]
[408408548,1773573041666,-2503.69656434,0.00019152,2]
[408408549,1773573041675,-5438.59,0.00019157,2]
[408408550,1773573041684,-2000.0,0.00019157,2]
[408408551,1773573041693,-200.0,0.00019157,2]
[408408552,1773573041702,-150.0,0.00019157,2]
[408408553,1773573041713,-500.0,0.00019157,2]
[408408554,1773573041722,-160.54,0.00019157,2]
[408408555,1773573041731,-1852.42,0.00019157,2]
[408408556,1773573041741,-177.5,0.00019178,2]
[408408557,1773573041750,-150.23101527,0.00019178,2]
[408408558,1773573041759,-504.62,0.0001933,2]
[408408559,1773573041768,-362.0,0.00019337,3]
[408408560,1773573041778,-15838.36016754,0.000195,2]
[408408561,1773573041787,-956.0,0.00019606,2]
[408408562,1773573041796,-956.0,0.00019615,2]
[408408563,1773573041805,-956.0,0.00019621,2]
[408408564,1773573041814,-166.66,0.00019658,2]
[408408565,1773573041823,-956.0,0.00019663,2]
[408408566,1773573041832,-5773.24840474,0.000197,2]
[408408567,1773573041841,-956.0,0.00019723,2]
[408408568,1773573041852,-956.0,0.00019789,2]
[408408569,1773573041861,-956.0,0.00019793,2]
[408408570,1773573041870,-2800.0,0.000198,7]
[408408571,1773573041879,-1800.0,0.000198,7]
[408408572,1773573041889,-956.0,0.00019871,2]
[408408573,1773573041898,-956.0,0.00019872,2]
[408408574,1773573041908,-500.0,0.000199,7]
[408408575,1773573041917,-300.0,0.000199,7]
[408408576,1773573041926,-11586.15910622,0.000199,2]
[408408577,1773573041936,-15550.72209961,0.000199,2]
[408408578,1773573041946,-896.01113346,0.000199,2]
[408408579,1773573041956,-212.54526184,0.00019919,2]
[408408580,1773573041968,-1348.2527862,0.0001992,2]
[408408581,1773573041977,-2129.1606567,0.0001995,15]
[408408582,1773573041987,-956.0,0.00019965,2]
[408408583,1773573041997,-22390.6641763,0.0001998,2]
[408408584,1773573042007,-288.25875794,0.0001999,2]
[408408585,1773573042016,-300.0,0.00019999,2]
[408408586,1773573042026,-685.06941575,0.00019999,2]
[408408587,1773573042038,-300.0,0.00019999,2]
[408408588,1773573042048,-666.0,0.00019999,2]
[408408589,1773573042057,-300.0,0.00019999,2]
[408408590,1773573042067,-300.0,0.00019999,2]
[408408591,1773573042078,-1062.77697115,0.00019999,5]
[408408592,1773573042088,-1075.15316851,0.00019999,5]
[408408593,1773573042098,-166.647,0.00019999,2]
[408408594,1773573042108,-244.26658027,0.0002,2]
[408408595,1773573042118,-172.6439,0.0002,2]
[408408596,1773573042128,-172.6439,0.0002,2]
[408408597,1773573042138,-172.6439,0.0002,2]
[408408598,1773573042148,-172.6439,0.0002,2]
[408408599,1773573042157,-172.6439,0.0002,2]
[408408600,1773573042167,-172.6439,0.0002,2]
[408408601,1773573042177,-568.0,0.0002,2]
[408408602,1773573042188,-3430857.24606077,0.0002,2]
[408408603,1773573042197,-435.0,0.0002,2]
[408408604,1773573042207,-45648.18585638,0.0002,2]
[408408605,1773573042216,-1322431.00858546,0.0002,2]
[408408606,1773573042226,-956.0,0.00020019,2]
[408408607,1773573042235,-956.0,0.00020112,2]
[408408608,1773573042244,-956.0,0.00020186,2]
[408408609,1773573042254,-956.0,0.00020257,2]
[408408610,1773573042264,-160.54,0.00020355,2]
[408408611,1773573042274,-161.0,0.0002042,3]
[408408612,1773573042283,-9035.0,0.00020548,2]
[408408613,1773573042293,-956.0,0.00020565,2]
[408408615,1773573042303,-956.0,0.00020582,2]
[408408616,1773573042313,-341.0,0.000206,7]
[408408618,1773573042324,-956.0,0.00020671,2]
[408408621,1773573042335,-956.0,0.00020711,2]
[408408622,1773573042346,-956.0,0.00020859,2]
[408408623,1773573042356,-362.0,0.00020884,3]
[408408624,1773573042365,-956.0,0.00020906,2]
[408408625,1773573042375,-400.0,0.00021,2]
[408408626,1773573042384,-956.0,0.00021085,2]
[408408627,1773573042393,-7443.16005916,0.00021114,2]
[408408628,1773573042536,-745.1649632,0.00021114,2]
[408408629,1773573042546,-956.0,0.00021159,2]
[408408630,1773573042556,-956.0,0.00021373,2]
[408408631,1773573042566,-956.0,0.00021465,2]
[408408632,1773573042576,-518.0,0.000215,6]
[408408633,1773573042586,-160.54,0.00021552,2]
[408408634,1773573042595,-956.0,0.00021558,2]
[408408635,1773573042604,-5170.41320182,0.00021656,16]
[408408636,1773573042613,-2500.0,0.00021917,2]
[408408637,1773573042623,-2500.0,0.00021917,2]
[408408638,1773573042633,-2500.0,0.00021917,2]
[408408639,1773573042642,-2500.0,0.00021917,2]
[408408640,1773573042652,-2500.0,0.00021917,2]
[408408641,1773573042661,-2500.0,0.00021917,2]
[408408642,1773573042670,-1445.1719844,0.00021917,2]
[408408643,1773573042679,-308.15210792,0.00022276,2]
[408408644,1773573042688,-362.0,0.00022432,3]
[408408645,1773573042697,-166.66,0.00022603,2]
[408408646,1773573042707,-12054.0,0.00022603,2]
[408408647,1773573042716,-3421.670701,0.0002261,30]
[408408648,1773573042726,-318.946266,0.0002261,30]
[408408649,1773573042735,-381.93768694,0.000227,2]
[408408650,1773573042744,-160.54,0.00022749,2]
[408408651,1773573042754,-879.98,0.00022986,2]
[408408652,1773573042763,-450.0,0.00023,2]
[408408653,1773573042772,-394.45592304,0.00023035,2]
[408408654,1773573042781,-161.0,0.0002336,3]
[408408656,1773573042791,-251.0,0.0002364,7]
[408408658,1773573042800,-153.56106977,0.00023782,2]
[408408659,1773573042809,-471.87,0.00023803,2]
[408408660,1773573042818,-160.54,0.00023947,2]
[408408661,1773573042827,-362.0,0.00023979,3]
[408408662,1773573042837,-469.87233333,0.00024,7]
[408408663,1773573042846,-16723.0971258,0.00024077,2]
[408408664,1773573042855,-1348.2527862,0.0002408,2]
[408408665,1773573042864,-2358.0,0.00024127,5]
[408408666,1773573042873,-172.9990431,0.00024139,2]
[408408667,1773573042883,-471.87,0.00024199,2]
[408408669,1773573042892,-471.87,0.00024596,2]
[408408670,1773573042901,-3608.0,0.00024658,120]
[408408672,1773573042912,-150.0,0.00024658,2]
[408408673,1773573042921,-2651.95954893,0.00024769,4]
[408408674,1773573042931,-370.20718385,0.00024886,2]
[408408675,1773573042940,-300.0,0.00024899,10]
[408408676,1773573042950,-500.0,0.000249,9]
[408408677,1773573042960,-471.87413767,0.00024993,2]
[408408678,1773573042974,-503.02078764,0.00025,30]
[408408679,1773573042984,-604.37882443,0.00025,30]
[408408680,1773573042993,-500.0,0.00025,30]
[408408681,1773573043002,-500.0,0.00025,30]
[408408682,1773573043013,-150.0,0.00025,2]
[408408683,1773573043022,-500.0,0.00025,2]
[408408684,1773573043031,-501.40106128,0.00025,30]
[408408685,1773573043041,-500.0,0.00025,30]
[408408686,1773573043050,-500.0,0.00025,30]
[408408687,1773573043060,-500.0,0.00025,30]
[408408688,1773573043069,-500.0,0.00025,30]
[408408689,1773573043078,-500.0,0.00025,30]
[408408690,1773573043087,-500.0,0.00025,30]
[408408691,1773573043096,-500.0,0.00025,30]
[408408692,1773573043105,-500.0,0.00025,30]
[408408693,1773573043114,-500.0,0.00025,30]
[408408694,1773573043124,-500.0,0.00025,30]
[408408695,1773573043133,-500.0,0.00025,30]
[408408696,1773573043143,-500.0,0.00025,30]
[408408697,1773573043152,-500.0,0.00025,30]
[408408698,1773573043162,-500.0,0.00025,30]
[408408699,1773573043171,-500.0,0.00025,30]
[408408700,1773573043180,-500.0,0.00025,30]
[408408701,1773573043190,-500.0,0.00025,30]
[408408702,1773573043199,-500.0,0.00025,30]
[408408703,1773573043208,-500.0,0.00025,30]
[408408704,1773573043218,-500.0,0.00025,30]
[408408705,1773573043227,-500.0,0.00025,30]
[408408706,1773573043236,-500.0,0.00025,30]
[408408707,1773573043246,-500.0,0.00025,30]
[408408708,1773573043255,-500.0,0.00025,30]
[408408709,1773573043264,-500.0,0.00025,30]
[408408710,1773573043273,-500.0,0.00025,30]
[408408711,1773573043283,-500.0,0.00025,30]
[408408712,1773573043292,-500.0,0.00025,30]
[408408713,1773573043302,-500.0,0.00025,30]
[408408714,1773573043311,-500.0,0.00025,30]
[408408715,1773573043319,-500.0,0.00025,30]
[408408716,1773573043329,-500.0,0.00025,30]
[408408717,1773573043338,-500.0,0.00025,30]
[408408718,1773573043347,-500.0,0.00025,30]
[408408719,1773573043357,-500.0,0.00025,30]
[408408720,1773573043366,-500.0,0.00025,30]
[408408721,1773573043376,-500.0,0.00025,30]
[408408722,1773573043385,-500.0,0.00025,30]
[408408723,1773573043394,-500.0,0.00025,30]
[408408724,1773573043403,-500.0,0.00025,30]
[408408725,1773573043413,-500.0,0.00025,30]
[408408726,1773573043422,-500.0,0.00025,30]
[408408727,1773573043431,-500.0,0.00025,30]
[408408728,1773573043440,-500.0,0.00025,30]
[408408729,1773573043449,-500.0,0.00025,30]
[408408730,1773573043458,-1119.1827055,0.00025,2]
[408408731,1773573043468,-469.87233333,0.00025,30]
[408408732,1773573043477,-208.49204698,0.00025,2]
[408408733,1773573043486,-1793.29856408,0.00025,2]
[408408734,1773573043495,-540.0,0.00025,2]
[408408735,1773573043505,-613.71167137,0.00025,2]
[408408736,1773573043514,-168.09158122,0.00025,2]
[408408737,1773573043524,-160.54,0.00025144,2]
[408408738,1773573043534,-620.0,0.00025157,2]
[408408739,1773573043543,-1343.0,0.00025157,2]
[408408740,1773573043553,-1043.0,0.00025157,2]
[408408741,1773573043562,-3436.312,0.00025157,2]
[408408742,1773573043571,-1284.339,0.00025157,2]
[408408743,1773573043580,-1350.051,0.00025157,2]
[408408744,1773573043589,-923.0,0.00025157,2]
[408408745,1773573043597,-425.351,0.00025157,2]
[408408746,1773573043606,-2480.446,0.00025157,2]
[408408747,1773573043615,-150.41,0.00025344,2]
[408408748,1773573043624,-150.196,0.00025344,2]
[408408749,1773573043634,-150.0,0.00025344,2]
[408408750,1773573043643,-151.0,0.00025344,2]
[408408751,1773573043652,-151.0,0.00025344,2]
[408408752,1773573043662,-151.0,0.00025344,2]
[408408753,1773573043671,-151.0,0.00025344,2]
[408408754,1773573043680,-151.0,0.00025344,2]
[408408755,1773573043688,-151.0,0.00025344,2]
[408408756,1773573043698,-151.0,0.00025344,2]
[408408757,1773573043707,-362.0,0.00025526,3]
[408408758,1773573043716,-166.66,0.00025548,2]
[408408759,1773573043725,-500.0,0.0002582,2]
[408408760,1773573043734,-250.0,0.0002582,2]
[408408761,1773573043744,-250.0,0.0002582,2]
[408408762,1773573043752,-250.0,0.0002582,2]
[408408763,1773573043762,-250.0,0.0002582,2]
[408408764,1773573043771,-250.0,0.0002582,2]
[408408765,1773573043779,-279.33639356,0.0002582,2]
[408408766,1773573043788,-1500.0,0.0002582,2]
[408408767,1773573043797,-500.0,0.0002582,2]
[408408768,1773573043806,-1500.0,0.0002582,2]
[408408769,1773573043816,-500.0,0.0002582,2]
[408408770,1773573043825,-1500.0,0.0002582,2]
[408408771,1773573043834,-500.0,0.0002582,2]
[408408772,1773573043843,-1500.0,0.0002582,2]
[408408773,1773573043851,-500.0,0.0002582,2]
[408408774,1773573043860,-1500.0,0.0002582,2]
[408408775,1773573043869,-151.0,0.0002582,2]
[408408776,1773573043878,-500.0,0.0002582,2]
[408408777,1773573043887,-1500.0,0.0002582,2]
[408408778,1773573043895,-500.0,0.0002582,2]
[408408779,1773573043904,-1500.0,0.0002582,2]
[408408780,1773573043913,-250.0,0.0002582,2]
[408408781,1773573043921,-500.0,0.0002582,2]
[408408782,1773573043930,-1500.0,0.0002582,2]
[408408783,1773573043939,-243.57435302,0.0002582,2]
[408408784,1773573043948,-500.0,0.0002582,2]
[408408785,1773573043957,-1500.0,0.0002582,2]
[408408786,1773573043968,-171.86459985,0.0002582,2]
[408408787,1773573043977,-500.0,0.0002582,2]
[408408788,1773573043986,-1500.0,0.0002582,2]
[408408789,1773573043996,-500.0,0.0002582,2]
[408408790,1773573044006,-1500.0,0.0002582,2]
[408408791,1773573044015,-500.0,0.0002582,2]
[408408792,1773573044024,-174.61919141,0.0002582,2]
[408408793,1773573044033,-200.0,0.0002582,2]
[408408794,1773573044044,-500.0,0.0002582,2]
[408408795,1773573044053,-500.0,0.0002582,2]
[408408796,1773573044062,-500.0,0.0002582,2]
[408408797,1773573044071,-500.0,0.0002582,2]
[408408798,1773573044080,-500.0,0.0002582,2]
[408408799,1773573044089,-500.0,0.0002582,2]
[408408800,1773573044098,-500.0,0.0002582,2]
[408408801,1773573044106,-500.0,0.0002582,2]
[408408802,1773573044115,-500.0,0.0002582,2]
[408408803,1773573044124,-500.0,0.0002582,2]
[408408804,1773573044133,-500.0,0.0002582,2]
[408408805,1773573044142,-152.806641,0.0002582,2]
[408408806,1773573044152,-156.646115,0.0002582,2]
[408408807,1773573044162,-179.366668,0.0002582,2]
[408408808,1773573044172,-153.320739,0.0002582,2]
[408408809,1773573044181,-212.797635,0.0002582,2]
[408408810,1773573044190,-151.0,0.0002582,2]
[408408811,1773573044199,-151.0,0.0002582,2]
[408408812,1773573044208,-7443.16005916,0.00025871,2]
[408408813,1773573044218,-745.1649632,0.00025871,2]
[408408814,1773573044228,-500.0,0.00025875,2]
[408408815,1773573044238,-151.0,0.00025875,2]
[408408816,1773573044248,-150.0,0.0002589,2]
[408408817,1773573044257,-500.0,0.0002593,2]
[408408818,1773573044267,-151.0,0.0002593,2]
[408408819,1773573044276,-500.0,0.00025985,2]
[408408820,1773573044285,-151.0,0.00025985,2]
[408408821,1773573044294,-518.0,0.00026,10]
[408408822,1773573044303,-500.0,0.0002604,2]
[408408823,1773573044313,-151.0,0.0002604,2]
[408408824,1773573044322,-500.0,0.00026095,2]
[408408825,1773573044332,-151.0,0.00026095,2]
[408408826,1773573044341,-500.0,0.0002615,2]
[408408827,1773573044351,-151.0,0.0002615,2]
[408408828,1773573044361,-825.0,0.0002616,10]
[408408829,1773573044370,-14806.0,0.0002616,10]
[408408830,1773573044379,-500.0,0.00026205,2]
[408408831,1773573044388,-151.0,0.00026205,2]
[408408832,1773573044397,-500.0,0.0002626,2]
[408408833,1773573044407,-151.0,0.0002626,2]
[408408834,1773573044416,-161.0,0.000263,3]
[408408835,1773573044425,-500.0,0.00026315,2]
[408408836,1773573044434,-151.0,0.00026315,2]
[408408837,1773573044444,-160.54,0.00026341,2]
[408408838,1773573044454,-181.08010149,0.00026368,2]
[408408839,1773573044462,-205.95595585,0.00026368,2]
[408408840,1773573044472,-500.0,0.0002637,2]
[408408841,1773573044481,-151.0,0.0002637,2]
[408408842,1773573044491,-6307.14930033,0.00026637,36]
[408408843,1773573044500,-194.905143,0.00027,2]
[408408844,1773573044509,-469.87233333,0.00027,10]
[408408845,1773573044518,-362.0,0.00027074,3]
[408408846,1773573044527,-150.0,0.00027185,2]
[408408847,1773573044537,-251.0,0.00027284,2]
[408408848,1773573044549,-1000.0,0.00027397,20]
[408408849,1773573044558,-151.0,0.00027397,2]
[408408850,1773573044566,-151.0,0.00027397,2]
[408408851,1773573044576,-151.0,0.00027397,2]
[408408852,1773573044585,-32247.41,0.00027397,10]
[408408853,1773573044595,-26872.84,0.00027397,10]
[408408854,1773573044604,-22394.03,0.00027397,10]
[408408855,1773573044613,-160.54,0.00027538,2]
[408408856,1773573044622,-2000.0,0.000277,2]
[408408857,1773573044631,-469.87233333,0.00028,10]
[408408858,1773573044640,-1343.0,0.00028157,2]
[408408859,1773573044649,-1043.0,0.00028157,2]
[408408860,1773573044658,-1260.0,0.00028157,2]
[408408861,1773573044667,-923.0,0.00028157,2]
[408408862,1773573044676,-414.0,0.00028157,2]
[408408863,1773573044685,-1348.2527862,0.00028241,2]
[408408864,1773573044694,-381.93768694,0.0002825,2]
[408408865,1773573044703,-166.66,0.00028493,2]
[408408866,1773573044713,-362.0,0.00028621,3]
[408408867,1773573044722,-160.54,0.00028736,2]
[408408868,1773573044731,-497.25498154,0.00028767,2]
[408408869,1773573044742,-23506.0,0.000288,2]
[408408870,1773573044750,-161.0,0.0002924,3]
[408408871,1773573044759,-5533.0,0.000293,3]
[408408872,1773573044768,-157.019101,0.000296,7]
[408408873,1773573044777,-189.712383,0.000296,7]
[408408874,1773573044787,-300.0,0.000299,10]
[408408875,1773573044796,-5533.0,0.000299,5]
[408408876,1773573044805,-7167.79728362,0.000299,2]
[408408877,1773573044814,-734.0,0.0003,2]
[408408878,1773573044824,-469.87233333,0.0003,3]
[408408879,1773573044833,-362.0,0.00030168,3]
[408408880,1773573044843,-170.7,0.000302,7]
[408408881,1773573044852,-1098.27352525,0.000304,2]
[408408882,1773573044862,-176.80719218,0.000304,2]
[408408883,1773573044871,-518.0,0.000305,14]
[408408884,1773573044880,-7443.16005916,0.00030629,2]
[408408885,1773573044889,-745.1649632,0.00030629,2]
[408408886,1773573044898,-500.0,0.00030658,2]
[408408887,1773573044908,-152.0,0.00031102,3]
[408408888,1773573044917,-1043.0,0.00031157,2]
[408408889,1773573044927,-1260.0,0.00031157,2]
[408408890,1773573044937,-923.0,0.00031157,2]
[408408891,1773573044946,-414.0,0.00031157,2]
[408408892,1773573044955,-2000.0,0.000314,2]
[408408893,1773573044967,-6606.42944229,0.000315,30]
[408408894,1773573044976,-6713.35825564,0.00031618,58]
[408408895,1773573044986,-362.0,0.00031716,3]
[408408896,1773573044996,-2000.0,0.000318,2]
[408408897,1773573045006,-503.0,0.00031915,2]
[408408898,1773573045015,-367.0,0.00032,2]
[408408899,1773573045024,-161.0,0.0003218,3]
[408408900,1773573045033,-1348.2527862,0.00032401,2]
[408408901,1773573045052,-229.26538091,0.0003287,2]
[408408902,1773573045064,-12691.02240842,0.00032876,120]
[408408903,1773573045074,-151.0,0.00032876,7]
[408408904,1773573045083,-151.0,0.00032876,7]
[408408905,1773573045093,-564.086424,0.00033,14]
[408408906,1773573045103,-3975.35,0.00033,2]
[408408907,1773573045112,-1404.44,0.00033,14]
[408408908,1773573045122,-1375.84,0.00033,30]
[408408909,1773573045132,-469.87233333,0.00033,120]
[408408910,1773573045141,-154.67821271,0.00033,2]